[Event "GER-ch Youth U18w 2019"]
[Site "Willingen"]
[Date "2019.06.15"]
[Round "9.8"]
[White "Browning, Rebecca"]
[Black "Tampe, Friederike"]
[Result "1/2-1/2"]
[ECO "C44"]
[WhiteElo "1923"]
[BlackElo "1512"]
[Annotator "NA"]
[PlyCount "68"]
[EventDate "2019.06.07"]
[EventType "swiss"]
[EventRounds "9"]
[EventCountry "GER"]
[SourceTitle "playchess.com"]
[Source "ChessBase"]
[SourceQuality "1"]
[TimeControl "40/5400+30:1800+30"]

1. e4 {[%emt 0:00:00]} e5 {[%emt 0:00:00]} 2. Nf3 {[%emt 0:00:00]} Nc6 {[%emt 0:00:00]} 3. d4 {[%emt 0:00:00]} exd4 {[%emt 0:00:00]} 4. Nxd4 {[%emt 0:00:00]} Nf6 {[%emt 0:00:08]} 5. Nc3 {[%emt 0:00:00]} Bb4 {[%emt 0:00:27]} 6. Nxc6 {[%emt 0:00:00]} bxc6 {[%emt 0:00:07]} 7. Bd3 {[%emt 0:00:00]} d5 {[%emt 0:00:12]} 8. exd5 {[%emt 0:00:00]} Bg4 {[%emt 0:00:09]} 9. Be2 {[%emt 0:03:03]} Bxc3+ {[%emt 0:03:35]} 10. bxc3 {[%emt 0:00:11]} Qe7 {[%emt 0:01:09]} 11. f3 {[%emt 0:00:59]} Bh5 {[%emt 0:00:18]} 12. O-O {[%emt 0:01:44]} O-O {[%emt 0:00:48]} 13. dxc6 {[%emt 0:04:16]} Rfd8 {[%emt 0:02:26]} 14. Bd3 {[%emt 0:00:52]} Qc5+ {[%emt 0:00:26]} 15. Kh1 {[%emt 0:00:05]} Qxc3 {[%emt 0:00:07]} 16. Bd2 {[%emt 0:00:30]} Qxc6 {[%emt 0:00:12]} 17. Qe2 {[%emt 0:04:23]} Bg6 {[%emt 0:02:18]} 18. Bxg6 {[%emt 0:04:48]} hxg6 {[%emt 0:00:40]} 19. Bg5 {[%emt 0:00:51]} Re8 {[%emt 0:03:05]} 20. Qf2 {[%emt 0:00:20]} Nd5 {[%emt 0:01:09]} 21. a3 {[%emt 0:14:01]} a6 {[%emt 0:13:00]} 22. Qd4 {[%emt 0:07:43]} Re6 {[%emt 0:06:00]} 23. c4 {[%emt 0:02:03]} Nb6 {[%emt 0:05:21]} 24. c5 {[%emt 0:00:30]} Nd7 {[%emt 0:01:41]} 25. Rac1 {[%emt 0:03:37]} Rae8 {[%emt 0:01:44]} 26. h3 {[%emt 0:00:46]} Re5 {[%emt 0:05:30]} 27. Bh4 {[%emt 0:02:10]} Rd5 {[%emt 0:01:35]} 28. Qb4 {[%emt 0:03:56]} Rxc5 {[%emt 0:01:21]} 29. Rxc5 {[%emt 0:00:07]} Qxc5 {[%emt 0:00:05]} 30. Qxc5 {[%emt 0:00:48]} Nxc5 {[%emt 0:00:05]} 31. Rc1 {[%emt 0:00:05]} Ne6 {[%emt 0:00:25]} 32. Rc6 {[%emt 0:00:16]} Ra8 {[%emt 0:01:26]} 33. Bg3 {[%emt 0:00:59]} Ra7 {[%emt 0:00:55]} 34. Bf2 {[%emt 0:00:22]} Ra8 {[%emt 0:00:26] normal} 1/2-1/2

[Event "GER-ch Youth U18w 2019"]
[Site "Willingen"]
[Date "2019.06.15"]
[Round "9.9"]
[White "Gauchel, Verena"]
[Black "Alferova, Ekaterina"]
[Result "1-0"]
[ECO "E61"]
[WhiteElo "1534"]
[BlackElo "1597"]
[Annotator "NA"]
[PlyCount "111"]
[EventDate "2019.06.07"]
[EventType "swiss"]
[EventRounds "9"]
[EventCountry "GER"]
[SourceTitle "playchess.com"]
[Source "ChessBase"]
[SourceQuality "1"]
[TimeControl "40/5400+30:1800+30"]

1. d4 {[%emt 0:00:00]} Nf6 {[%emt 0:00:00]} 2. Nf3 {[%emt 0:00:00]} d6 {[%emt 0:00:00]} 3. c4 {[%emt 0:00:08]} g6 {[%emt 0:00:00]} 4. Nc3 {[%emt 0:00:27]} Bg7 {[%emt 0:00:05]} 5. Bg5 {[%emt 0:00:35]} O-O {[%emt 0:00:17]} 6. h3 {[%emt 0:00:39]} h6 {[%emt 0:00:15]} 7. Bh4 {[%emt 0:00:28]} Nbd7 {[%emt 0:02:32]} 8. e3 {[%emt 0:01:28]} c5 {[%emt 0:00:44]} 9. Be2 {[%emt 0:04:20]} b6 {[%emt 0:02:36]} 10. d5 {[%emt 0:02:18]} Ne8 {[%emt 0:00:58]} 11. Qc2 {[%emt 0:01:03]} Ndf6 {[%emt 0:01:16]} 12. Bd3 {[%emt 0:03:12]} Nc7 {[%emt 0:02:06]} 13. O-O {[%emt 0:01:24]} g5 {[%emt 0:02:34]} 14. Bg3 {[%emt 0:00:22]} Nh5 {[%emt 0:00:58]} 15. Bh2 {[%emt 0:01:25]} f5 {[%emt 0:02:10]} 16. Be2 {[%emt 0:07:58]} Qe8 {[%emt 0:02:20]} 17. Nd2 {[%emt 0:09:18]} g4 {[%emt 0:04:54]} 18. hxg4 {[%emt 0:04:26]} fxg4 {[%emt 0:00:30]} 19. Bd3 {[%emt 0:02:01]} Qd8 {[%emt 0:03:00]} 20. Bg6 {[%emt 0:07:07]} Nf6 {[%emt 0:00:09]} 21. Rae1 {[%emt 0:05:51]} Bd7 {[%emt 0:05:20]} 22. e4 {[%emt 0:06:08]} b5 {[%emt 0:01:29]} 23. b3 {[%emt 0:07:18]} b4 {[%emt 0:00:13]} 24. Nd1 {[%emt 0:02:40]} Be8 {[%emt 0:23:41]} 25. e5 {[%emt 0:04:50]} dxe5 {[%emt 0:00:52]} 26. Bxe5 {[%emt 0:00:57]} Nh5 {[%emt 0:03:44]} 27. Bxe8 {[%emt 0:09:32]} Nxe8 {[%emt 0:00:09]} 28. Qg6 {[%emt 0:00:56]} Nhf6 {[%emt 0:11:39]} 29. Ne3 {[%emt 0:03:11]} Kh8 {[%emt 0:08:05]} 30. Nxg4 {[%emt 0:03:42]} Nxg4 {[%emt 0:00:13]} 31. Bxg7+ {[%emt 0:01:00]} Nxg7 {[%emt 0:00:11]} 32. Qxg4 {[%emt 0:00:08]} e6 {[%emt 0:01:57]} 33. Ne4 {[%emt 0:03:54]} exd5 {[%emt 0:02:06]} 34. Nxc5 {[%emt 0:00:24]} dxc4 {[%emt 0:00:38]} 35. Qxc4 {[%emt 0:01:47]} a5 {[%emt 0:01:56]} 36. Ne6 {[%emt 0:01:54]} Nxe6 {[%emt 0:00:52]} 37. Qxe6 {[%emt 0:00:39]} Qd2 {[%emt 0:07:51]} 38. Re2 {[%emt 0:02:04]} Qg5 {[%emt 0:03:29]} 39. Qe5+ {[%emt 0:01:10]} Qxe5 {[%emt 0:00:07]} 40. Rxe5 {[%emt 0:00:04]} a4 {[%emt 0:02:45]} 41. Re4 {[%emt 0:06:15]} axb3 {[%emt 0:03:34]} 42. axb3 {[%emt 0:00:54]} Rfb8 {[%emt 0:00:28]} 43. Rd1 {[%emt 0:01:06]} Ra3 {[%emt 0:00:24]} 44. Rd3 {[%emt 0:00:30]} Ra1+ {[%emt 0:00:15]} 45. Kh2 {[%emt 0:00:13]} Rb1 {[%emt 0:02:37]} 46. Re6 {[%emt 0:07:49]} Rb2 {[%emt 0:03:43]} 47. Rxh6+ {[%emt 0:03:41]} Kg7 {[%emt 0:00:06]} 48. Rh4 {[%emt 0:00:25]} Rxf2 {[%emt 0:00:11]} 49. Rdd4 {[%emt 0:00:21]} Re8 {[%emt 0:07:08]} 50. Rxb4 {[%emt 0:00:58]} Re3 {[%emt 0:00:25]} 51. Rbg4+ {[%emt 0:02:15]} Kf6 {[%emt 0:00:14]} 52. Rf4+ {[%emt 0:00:24]} Rxf4 {[%emt 0:00:11]} 53. Rxf4+ {[%emt 0:00:05]} Ke5 {[%emt 0:00:06]} 54. Rf3 {[%emt 0:00:20]} Re4 {[%emt 0:00:33] normal} 55. Kh3 {[%emt 0:02:38]} Kd5 {[%emt 0:00:09]} 56. g4 {[%emt 0:01:36] normal} 1-0

[Event "GER-ch Youth U18w 2019"]
[Site "Willingen"]
[Date "2019.06.15"]
[Round "9.10"]
[White "Trams, Emma Joe"]
[Black "Kuemmel, Tina"]
[Result "1/2-1/2"]
[ECO "C01"]
[WhiteElo "1418"]
[BlackElo "1446"]
[Annotator "NA"]
[PlyCount "51"]
[EventDate "2019.06.07"]
[EventType "swiss"]
[EventRounds "9"]
[EventCountry "GER"]
[SourceTitle "playchess.com"]
[Source "ChessBase"]
[SourceQuality "1"]
[TimeControl "40/5400+30:1800+30"]

1. e4 {[%emt 0:00:00]} e6 {[%emt 0:00:00]} 2. d4 {[%emt 0:00:00]} d5 {[%emt 0:00:00]} 3. exd5 {[%emt 0:00:00]} exd5 {[%emt 0:00:00]} 4. Be2 {[%emt 0:00:17]} Bd6 {[%emt 0:00:00]} 5. Nf3 {[%emt 0:00:09]} Ne7 {[%emt 0:00:26]} 6. O-O {[%emt 0:00:09]} Bf5 {[%emt 0:01:01]} 7. Re1 {[%emt 0:00:43]} O-O {[%emt 0:00:31]} 8. Nbd2 {[%emt 0:00:40]} Nd7 {[%emt 0:01:12]} 9. Nf1 {[%emt 0:00:29]} c6 {[%emt 0:08:18]} 10. Ne3 {[%emt 0:00:48]} Bg6 {[%emt 0:00:32]} 11. c3 {[%emt 0:01:22]} Qc7 {[%emt 0:01:50]} 12. h3 {[%emt 0:00:54]} h6 {[%emt 0:04:03]} 13. Bd3 {[%emt 0:01:26]} Nf6 {[%emt 0:03:49]} 14. Bxg6 {[%emt 0:00:57]} Nxg6 {[%emt 0:00:12]} 15. Nf5 {[%emt 0:00:37]} Rae8 {[%emt 0:10:42]} 16. Rxe8 {[%emt 0:01:14]} Rxe8 {[%emt 0:00:42]} 17. Nxd6 {[%emt 0:00:43]} Qxd6 {[%emt 0:00:22]} 18. Be3 {[%emt 0:00:28]} Ne4 {[%emt 0:03:05]} 19. Nd2 {[%emt 0:01:20]} Nf4 {[%emt 0:12:09]} 20. Nxe4 {[%emt 0:01:32]} Rxe4 {[%emt 0:02:18]} 21. Qd2 {[%emt 0:03:40]} Ng6 {[%emt 0:04:23]} 22. Re1 {[%emt 0:01:19]} Qe7 {[%emt 0:01:54]} 23. Kf1 {[%emt 0:00:53]} Nh4 {[%emt 0:05:21]} 24. f3 {[%emt 0:04:32]} Re6 {[%emt 0:00:43]} 25. Bf2 {[%emt 0:01:31]} Nf5 {[%emt 0:01:19] normal} 26. Rxe6 {[%emt 0:01:28] normal} 1/2-1/2

[Event "GER-ch Youth U18w 2019"]
[Site "Willingen"]
[Date "2019.06.15"]
[Round "9.11"]
[White "Fuchs, Emily"]
[Black "Schneider, Xenia"]
[Result "1-0"]
[ECO "B21"]
[WhiteElo "1384"]
[BlackElo "1364"]
[Annotator "NA"]
[PlyCount "46"]
[EventDate "2019.06.07"]
[EventType "swiss"]
[EventRounds "9"]
[EventCountry "GER"]
[SourceTitle "playchess.com"]
[Source "ChessBase"]
[SourceQuality "1"]
[TimeControl "40/5400+30:1800+30"]

1. e4 {[%emt 0:00:00]} c5 {[%emt 0:00:00]} 2. d4 {[%emt 0:00:00]} cxd4 {[%emt 0:00:00]} 3. c3 {[%emt 0:00:00]} dxc3 4. Nxc3 {[%emt 0:00:32]} e6 {[%emt 0:00:05]} 5. Bf4 {[%emt 0:01:14]} a6 {[%emt 0:02:05]} 6. Bc4 {[%emt 0:03:09]} b5 {[%emt 0:05:11]} 7. Bb3 {[%emt 0:08:18]} Bb7 {[%emt 0:05:38]} 8. Nf3 Bb4 9. Qe2 {[%emt 0:11:14]} Qf6 {[%emt 0:13:42]} 10. Bd2 {[%emt 0:28:59]} Nc6 {[%emt 0:05:11]} 11. O-O Nd4 {[%emt 0:41:03]} 12. Nxd4 {[%emt 0:06:13]} Qxd4 {[%emt 0:00:06]} 13. Rfd1 {[%emt 0:06:56]} Bc5 {[%emt 0:02:40]} 14. Be3 {[%emt 0:06:21]} Qe5 {[%emt 0:00:40]} 15. Qd2 {[%emt 0:02:39]} Rd8 {[%emt 0:07:18]} 16. Bf4 Qh5 {[%emt 0:05:29]} 17. Bc7 {[%emt 0:04:54]} d6 {[%emt 0:00:15]} 18. Bxd8 {[%emt 0:00:40]} Kxd8 {[%emt 0:00:06]} 19. Re1 {[%emt 0:11:17]} Nf6 {[%emt 0:00:13]} 20. h3 {[%emt 0:00:46]} Nd7 {[%emt 0:01:30]} 21. Bc2 {[%emt 0:01:39]} Ne5 {[%emt 0:00:49]} 22. Qf4 {[%emt 0:02:20]} g5 {[%emt 0:02:11]} 23. Qf6+ {[%emt 0:00:57]} Kd7 {[%emt 0:00:46] normal} 1-0